[Event "BL 2024-25"]
[Site "Austria"]
[Date "2024.10.13"]
[Round "5.1"]
[White "Nisipeanu, Liviu-Dieter"]
[Black "Krivoborodov, Egor"]
[Result "1-0"]
[Annotator "TA"]
[ECO "B25"]
[WhiteElo "2584"]
[BlackElo "2555"]
[PlyCount "81"]
[EventDate "2024.08.28"]
[EventType "team-tourn"]
[EventCountry "AUT"]
[SourceTitle "playchess.com"]
[Source "ChessBase"]
[SourceQuality "1"]
[WhiteTeam "Mayrhofen-Zell-Ziller"]
[BlackTeam "Frauental"]
[TimeControl "40/5400+30:1800+30"]

{[%evp 13,81,-15,-11,-39,-29,-45,-43,-43,9,0,0,13,15,-4,48,18,21,9,0,6,11,0,9,0,98,74,85,94,157,160,153,129,145,144,145,168,170,170,172,170,157,113,105,107,93,86,112,115,113,113,120,102,109,119,116,91,129,128,123,116,116,116,249,159,397,390,383,383,360,298]} 1. e4 {[%emt 0:00:04]} c5 {[%emt 0:00:04]} 2. Nc3 {[%emt 0:00:18]} g6 {[%emt 0:00:41]} 3. g3 {[%emt 0:00:08]} Bg7 {[%emt 0:00:05]} 4. Bg2 {[%emt 0:00:03]} Nc6 {[%emt 0:00:25]} 5. d3 {[%emt 0:00:05]} d6 {[%emt 0:00:23]} 6. f4 {[%emt 0:00:06]} e6 {[%emt 0:01:02]} 7. Nf3 {[%emt 0:00:07]} Nge7 {[%emt 0:00:41]} 8. h4 {[%emt 0:00:06]} h5 {[%emt 0:10:43]} 9. O-O {[%emt 0:00:12]} d5 {[%emt 0:05:10]} 10. Ng5 {[%emt 0:13:21][%cal Of4f5,Bf3g5,Bg5h3,Bh3f4][%mdl 32] Black is slightly better.} dxe4 {[%emt 0:11:47]} (10... O-O $15) 11. dxe4 $11 {[%emt 0:02:49]} Qxd1 {[%emt 0:00:33]} 12. Nxd1 {[%emt 0:01:22][%cal Bc3d1,Bd1e3,Be3d5][%mdl 32]} e5 {[%emt 0:06:30]} 13. c3 {[%emt 0:07:06] Repels Nd4} f6 {[%emt 0:19:13]} (13... O-O $11) 14. Nh3 {[%emt 0:18:13]} Be6 {[%emt 0:09:24]} 15. Ne3 {[%emt 0:03:39]} O-O-O {[%emt 0:04:13]} 16. fxe5 {[%emt 0:04:07]} Nxe5 {[%emt 0:03:21]} 17. Nf4 {[%emt 0:47:14]} Bd7 {[%emt 0:01:15]} 18. a4 {[%emt 0:06:46]} f5 {[%emt 0:05:24]} (18... Bh6 $11 {keeps the balance.}) 19. Nfd5 $16 {[%emt 0:01:49]} Nxd5 {[%emt 0:00:44]} 20. Nxd5 {[%emt 0:00:07]} Nc6 {[%emt 0:04:49] Prevents Ne7+} ({Better is} 20... Rde8) 21. Bg5 {[%emt 0:07:36]} Rde8 {[%emt 0:00:04]} 22. Rae1 {[%emt 0:11:42]} Rhf8 {[%emt 0:08:23]} 23. exf5 {[%emt 0:22:00]} Rxe1 {[%emt 0:00:21]} 24. Rxe1 {[%emt 0:00:05]} Rxf5 {[%emt 0:00:07]} 25. Ne7+ {[%emt 0:02:19]} Nxe7 {[%emt 0:00:01]} 26. Rxe7 {[%emt 0:00:11]} Bf6 {[%emt 0:00:08] [#]} 27. Bxb7+ $1 {[%emt 0:02:04][%mdl 512]} Kxb7 {[%emt 0:00:16]} 28. Rxd7+ {[%emt 0:00:06]} Kc6 {[%emt 0:00:02]} 29. Rxa7 {[%emt 0:01:33]} Bxg5 {[%emt 0:00:04]} 30. hxg5 {[%emt 0:00:13]} Rxg5 {[%emt 0:00:02][%mdl 4096] Endgame. KR-KR} 31. Kf2 {[%emt 0:00:17]} Rf5+ {[%emt 0:01:37]} 32. Ke3 {[%emt 0:03:13] And now Ra6+ would win.} Rg5 {[%emt 0:00:06]} 33. Kf4 {[%emt 0:05:11]} Rf5+ {[%emt 0:00:21]} 34. Ke4 {[%emt 0:01:56] White is much more active.} Rg5 {[%emt 0:00:10]} 35. Kf3 $1 {[%emt 0:00:23]} Rf5+ {[%emt 0:00:05] [#]} 36. Kg2 $1 {[%emt 0:00:03]} Rg5 {[%emt 0:00:24]} 37. Kh3 {[%emt 0:01:18]} Kb6 {[%emt 0:04:56] Repels b4} (37... c4 $16) 38. Re7 {[%emt 0:09:58] Hoping for b4.} Ka5 {[%emt 0:01:57] [#]} (38... c4 $16 39. Re4 Kc5) 39. b3 $1 $18 {[%emt 0:01:27] White is winning.} (39. Ra7+ Kb6 40. Rf7 Ka5 $16) 39... c4 {[%emt 0:03:44]} 40. bxc4 {[%emt 0:00:12]} Kxa4 {[%emt 0:00:01]} 41. Rb7 {[%emt 0:07:14] Weighted Error Value: White=0.09 (flawless) /Black=0.27 (precise) .  Loses game:     	---       	Black=1      Mistake:       	---       	Black=5      Inaccurate:     	White=2     	Black=2      OK:         	White=12    	Black=14     Best:        	White=2     	Black=1      Strong:       	White=3     	---} 1-0

[Event "BL 2024-25"]
[Site "Austria"]
[Date "2024.10.13"]
[Round "5.2"]
[White "Schnider, Gert"]
[Black "Vogel, Roven"]
[Result "1-0"]
[Annotator "TA"]
[ECO "B92"]
[WhiteElo "2362"]
[BlackElo "2559"]
[PlyCount "81"]
[EventDate "2024.08.28"]
[EventType "team-tourn"]
[EventCountry "AUT"]
[SourceTitle "playchess.com"]
[Source "ChessBase"]
[SourceQuality "1"]
[WhiteTeam "Frauental"]
[BlackTeam "Mayrhofen-Zell-Ziller"]
[TimeControl "40/5400+30:1800+30"]

{[%evp 18,81,0,6,1,0,0,-14,0,0,0,0,-11,0,-8,-15,-8,-32,-15,-66,-72,-64,-61,-89,-91,-83,-72,-98,-78,-79,-71,-97,0,-53,0,0,0,0,0,0,0,0,0,0,0,0,0,-60,0,0,58,0,0,-8,-10,-11,-12,-7,-6,-10,0,0,104,18,88,73]} 1. e4 {[%emt 0:00:04]} c5 {[%emt 0:00:09]} 2. Nf3 {[%emt 0:00:04]} d6 {[%emt 0:00:54]} 3. d4 {[%emt 0:00:04]} cxd4 {[%emt 0:00:06]} 4. Nxd4 {[%emt 0:00:01]} Nf6 {[%emt 0:00:11]} 5. Nc3 {[%emt 0:00:04]} a6 {[%emt 0:00:08]} 6. Be2 {[%emt 0:00:05]} e5 {[%emt 0:01:11]} 7. Nb3 {[%emt 0:00:04]} Be6 {[%emt 0:05:52]} 8. Be3 {[%emt 1:34:04]} Be7 {[%emt 0:03:41]} 9. Nd5 {[%emt 0:00:05]} Nxd5 {[%emt 0:02:54]} 10. exd5 {[%emt 0:00:07]} Bf5 {[%emt 0:00:08]} 11. a4 {[%emt 0:02:00]} Nd7 {[%emt 0:08:01]} 12. a5 {[%emt 0:05:11]} O-O {[%emt 0:07:53] The position is equal.} 13. O-O {[%emt 1:27:14][%cal Bh1f1,Bf1f4,Bf4b4][%mdl 32]} Bg5 {[%emt 0:00:45]} 14. f4 {[%emt 0:17:33]} exf4 {[%emt 0:03:08]} 15. Bxf4 {[%emt 0:00:20]} Bxf4 {[%emt 0:04:15]} 16. Rxf4 {[%emt 0:00:02]} Bg6 {[%emt 0:01:09]} 17. Rb4 {[%emt 0:08:16]} Rb8 {[%emt 0:01:56]} 18. Bd3 {[%emt 0:02:03]} (18. c4 $11) 18... Re8 $15 {[%emt 0:02:55]} 19. Nd4 {[%emt 0:08:37]} Qg5 {[%emt 0:04:34]} 20. Bxg6 {[%emt 0:04:22]} hxg6 {[%emt 0:00:47]} 21. Nf3 {[%emt 0:04:14]} Qe3+ {[%emt 0:00:38]} 22. Kh1 {[%emt 0:01:11]} Nf6 {[%emt 0:02:02]} 23. h3 {[%emt 0:08:36]} Qf2 {[%emt 0:03:10]} 24. c4 {[%emt 0:05:17]} Re2 {[%emt 0:08:14]} ({Black should play} 24... Re4 $17 {White must now prevent ...Qc5.} 25. Qg1 Qxg1+ 26. Kxg1 Nxd5) 25. Qf1 {[%emt 0:02:30]} (25. Qg1 $1 $11 Rxb2 26. Qxf2 Rxf2 27. Kg1) 25... Ne4 {[%emt 0:01:56]} (25... Rxb2 26. Qxf2 Rxf2 27. Rab1 $11) (25... Qe3 $1 $15 26. Rb3 Qxb3 27. Qxe2 Rc8) 26. Qxf2 $11 {[%emt 0:01:18]} Nxf2+ {[%emt 0:00:18][%cal Be4f2,Bf2d3,Bd3f4][%mdl 32]} 27. Kh2 {[%emt 0:03:28]} Nd3 {[%emt 0:03:30][%csl LRb2,LRb4]} 28. Rb3 {[%emt 0:04:31]} Nf4 {[%emt 0:07:31]} (28... Nxb2 $2 29. Ra2 $18) 29. Rg1 {[%emt 0:10:54]} Rc2 {[%emt 0:02:19]} 30. Rb4 {[%emt 0:01:50]} Nd3 {[%emt 0:02:17][%csl LRb2,LRb4]} 31. Rb3 {[%emt 0:02:39]} Nxb2 {[%emt 0:07:43]} (31... Rxb2 $2 32. Rxd3 Ra2 33. Rb1 $18) 32. Nd4 {[%emt 0:01:56]} ({Better is} 32. Re1 $11) 32... Rd2 {[%emt 0:06:21]} (32... Rxc4 $15 33. Nc6 Re8 (33... bxc6 $2 34. Rxb8+ Kh7 35. Rxb2 $18)) 33. Nf3 $1 {[%emt 0:00:07]} Rf2 {[%emt 0:01:46]} (33... Re2 $11 34. c5 dxc5) 34. Kg3 {[%emt 0:00:00]} (34. c5 $1 $14 dxc5 35. d6 (35. Rb1 Nc4 $11)) 34... Rc2 {[%emt 0:00:07]} 35. Rb1 {[%emt 0:00:00]} Nxc4 {[%emt 0:00:45]} 36. Rxb7 {[%emt 0:00:01]} Rxb7 {[%emt 0:01:25]} 37. Rxb7 {[%emt 0:00:01] [#] Intending Rb8+ and mate. KRN-KRN} f6 {[%emt 0:04:07]} (37... Nxa5 38. Rb8+) 38. Nd4 {[%emt 0:02:28]} Rd2 {[%emt 0:03:25]} 39. Ne6 {[%emt 0:00:27]} Ne3 {[%emt 0:00:59]} (39... Kh7 $11 {remains equal.}) 40. Rxg7+ $16 {[%emt 0:00:55]} (40. Nxg7 Nf1+ (40... Nxd5 41. Kf3 $11) (40... Rxd5 41. Ne8 $11) 41. Kh4 Rxg2 $11 (41... Rxd5 42. Ne8 $11)) 40... Kh8 {[%emt 0:00:04] [#] And now ...Nf5+ would win.} 41. Ra7 $1 {[%emt 0:02:02] Weighted Error Value: White=0.16 (very precise) /Black=0.22 (precise) .  Mistake:       	White=4     	Black=5      Inaccurate:     	White=2     	Black=1      OK:         	White=11    	Black=13     Best:        	White=3     	Black=1      Strong:       	White=2     	---} (41. Rxg6 $2 {is the wrong capture.} Rxg2+ (41... Rxd5 42. Rxf6 Rxa5 43. Nc7 $14) 42. Kf3 Rxg6 $19) 1-0

[Event "BL 2024-25"]
[Site "Austria"]
[Date "2024.10.13"]
[Round "5.3"]
[White "Votava, Jan"]
[Black "Fahrner, Kurt"]
[Result "1-0"]
[Annotator "TA"]
[ECO "A53"]
[WhiteElo "2441"]
[BlackElo "2314"]
[PlyCount "59"]
[EventDate "2024.08.28"]
[EventType "team-tourn"]
[EventCountry "AUT"]
[SourceTitle "playchess.com"]
[Source "ChessBase"]
[SourceQuality "1"]
[WhiteTeam "Mayrhofen-Zell-Ziller"]
[BlackTeam "Frauental"]
[TimeControl "40/5400+30:1800+30"]

{[%evp 9,59,53,48,48,50,53,78,74,76,81,73,69,160,176,181,175,187,186,183,193,185,178,176,181,176,184,200,203,979,1006,1015,1006,993,993,990,984,1250,1083,1441,1360,1193,1043,1093,1075,1829,1681,4718,4810,29977,29975,29983,29984]} 1. d4 {[%emt 0:00:05]} d6 {[%emt 0:00:03]} 2. Nf3 {[%emt 0:00:18][%cal Bg1f3,Bf3d2,Bd2e4,Be4c3][%mdl 32]} Nf6 {[%emt 0:00:06]} 3. c4 {[%emt 0:00:18]} Bf5 {[%emt 0:00:06]} 4. Nc3 {[%emt 0:00:12]} Na6 {[%emt 0:02:39]} 5. Bg5 {[%emt 0:03:39]} Ne4 {[%emt 0:11:00]} 6. Nxe4 {[%emt 0:10:11]} Bxe4 {[%emt 0:02:57]} 7. Nd2 {[%emt 0:01:03]} h6 {[%emt 0:10:15]} 8. Bxh6 {[%emt 0:14:01] White is better.} Rxh6 {[%emt 0:00:55]} 9. Nxe4 {[%emt 0:00:03]} e5 {[%emt 0:00:26]} 10. Nc3 {[%emt 0:05:28]} d5 {[%emt 0:14:51]} 11. cxd5 $16 {[%emt 0:06:21]} (11. dxe5 d4 12. Ne4 Bb4+ 13. Nd2 Nc5 $11) 11... Bb4 {[%emt 0:07:01]} 12. e4 {[%emt 0:08:24]} Qh4 {[%emt 0:02:11]} 13. Qa4+ {[%emt 0:04:45]} (13. dxe5 $6 Qxe4+ 14. Qe2 Bxc3+ 15. bxc3 Qxd5 $14) 13... Kf8 {[%emt 0:09:18][%cal Be8f8,Bf8g8,Bg8f7][%mdl 32]} 14. Bxa6 {[%emt 0:03:27]} (14. dxe5 $2 Qxe4+ 15. Kd1 Qd4+ (15... Qxe5 $2 16. Kc2 $19) 16. Kc2 Bxc3 (16... Qxe5 17. Bxa6 Bxc3 18. Qa3+ Kg8 19. Qxc3 $16) (16... Qxf2+ $2 17. Kd1 $19) 17. Qxd4 Bxd4 $19) 14... Bxc3+ {[%emt 0:01:38]} 15. bxc3 {[%emt 0:00:31]} Rxa6 {[%emt 0:08:54]} 16. Qb4+ {[%emt 0:00:49]} Kg8 {[%emt 0:00:24]} 17. dxe5 {[%emt 0:10:23][%cal Og2g3]} (17. Qxb7 Qxe4+ 18. Kd2 Rb6 (18... Qf4+ 19. Kd3 $18) 19. Qxa8+ Kh7 $11) 17... Re8 {[%emt 0:01:59]} 18. e6 {[%emt 0:05:55]} (18. Qxb7 $2 Qxe4+ 19. Kf1 Rb6 $19) 18... c5 $2 {[%emt 0:18:09] [#]} (18... fxe6 19. O-O (19. Qxb7 $2 Qxe4+ 20. Kd2 Rb6 $19) 19... exd5) 19. exf7+ $18 {[%emt 0:06:39]} ({Less strong is} 19. Qxc5 Qxe4+ 20. Qe3 Qxd5 $11) 19... Kxf7 {[%emt 0:00:18]} 20. Qxb7+ {[%emt 0:00:14]} (20. Qxc5 $2 {is the wrong capture.} Qxe4+ 21. Kd2 Rb6 $19) 20... Kg8 {[%emt 0:01:15]} 21. Qxa6 {[%emt 0:10:50]} Qxe4+ {[%emt 0:00:07]} 22. Kf1 {[%emt 0:00:19][%cal Be1f1,Bf1g1,Bg1h2,Bh2h3][%mdl 32]} c4 {[%emt 0:00:03]} 23. h4 {[%emt 0:01:34]} (23. Qxa7 $2 {leads to mate.} Qe2+ 24. Kg1 Qe1+ 25. Rxe1 Rxe1#) 23... Qd3+ {[%emt 0:01:10]} 24. Kg1 {[%emt 0:00:01]} Qxc3 {[%emt 0:00:08]} 25. Kh2 {[%emt 0:02:43]} Qe5+ {[%emt 0:00:13]} 26. g3 {[%emt 0:00:14]} Qf5 {[%emt 0:00:04]} 27. Qxc4 {[%emt 0:02:35]} Qxf2+ {[%emt 0:00:05]} 28. Kh3 {[%emt 0:03:28]} Qf5+ {[%emt 0:00:42]} 29. Qg4 {[%emt 0:00:00]} Qxd5 {[%emt 0:00:10]} 30. Rhe1 {[%emt 0:00:00] White took control after the opening.   Weighted Error Value: White=0.01 (flawless) /Black=0.19 (very precise) .  Mistake:       	---       	Black=2      OK:         	White=6     	Black=4      Best:        	White=5     	Black=2} 1-0

[Event "BL 2024-25"]
[Site "Austria"]
[Date "2024.10.13"]
[Round "5.4"]
[White "Steiner, Stefan"]
[Black "Maiwald, Jens-Uwe"]
[Result "1/2-1/2"]
[Annotator "TA"]
[ECO "D35"]
[WhiteElo "2302"]
[BlackElo "2429"]
[PlyCount "61"]
[EventDate "2024.08.28"]
[EventType "team-tourn"]
[EventCountry "AUT"]
[SourceTitle "playchess.com"]
[Source "ChessBase"]
[SourceQuality "1"]
[WhiteTeam "Frauental"]
[BlackTeam "Mayrhofen-Zell-Ziller"]
[TimeControl "40/5400+30:1800+30"]

{[%evp 15,61,-24,-17,-27,-51,-57,-45,-57,-43,-64,-46,-59,0,-45,-15,-45,-49,-46,-46,-64,9,-7,47,53,46,32,57,35,70,69,52,31,64,61,142,118,129,92,138,88,120,93,114,77,129,0,121,0]} 1. d4 {[%emt 0:00:03]} Nf6 {[%emt 0:00:19]} 2. c4 {[%emt 0:00:11]} e6 {[%emt 0:02:58]} 3. g3 {[%emt 0:00:05]} d5 {[%emt 0:01:30]} 4. Nf3 {[%emt 0:00:03]} h6 {[%emt 0:00:14]} 5. Bg2 {[%emt 0:00:19]} Bd6 {[%emt 0:00:09]} 6. Nc3 {[%emt 0:01:10]} O-O {[%emt 0:00:57]} 7. O-O {[%emt 0:00:22]} Nc6 {[%emt 0:00:22]} 8. cxd5 {[%emt 0:09:58]} exd5 {[%emt 0:00:46]} 9. Bf4 {[%emt 0:00:15] D35: Damegambiet Geweigerd: Ruilvariant.} Bxf4 {[%emt 0:01:17] Beste (Gemakkelijk)} 10. gxf4 {[%emt 0:00:03]} Ne7 {[%emt 0:01:08] OK} 11. Ne5 {[%emt 0:05:15] Zwart staat iets beter.} c6 {[%emt 0:01:31] OK} 12. b4 $146 {[%emt 0:03:11]} ({Predecessor:} 12. e3 Bf5 13. Kh1 Ne4 14. Nxe4 Bxe4 15. Bxe4 dxe4 16. Qc2 f6 17. Nc4 Qd5 18. Nd2 {1-0 Bryakin,M (2448)-Jacobson,B (2491) Titled Arena 2nd Jan blitz 2021}) 12... a6 {[%emt 0:12:42]} 13. a4 {[%emt 0:00:38] OK} Bf5 {[%emt 0:04:23] Fout (0.6)} (13... Nf5 $15) 14. e3 {[%emt 0:10:47] Onnauwkeurig} Ne8 {[%emt 0:09:18] Onnauwkeurig} 15. Qe2 {[%emt 0:26:32] Onnauwkeurig} f6 {[%emt 0:01:26] OK} 16. Nd3 {[%emt 0:01:26] OK} Nd6 {[%emt 0:02:49] OK} 17. Rfc1 {[%emt 0:06:17]} Bxd3 {[%emt 0:04:21] Fout (0.7)} (17... Ng6 $15) 18. Qxd3 $11 {[%emt 0:00:01]} f5 {[%emt 0:00:19] Fout (0.5)} (18... g5 $11) 19. b5 $14 {[%emt 0:00:46] Beste (Gemakkelijk)} a5 {[%emt 0:03:13] OK} 20. Rab1 {[%emt 0:03:43]} Kh8 {[%emt 0:04:11]} 21. Qe2 {[%emt 0:05:23]} Qd7 {[%emt 0:02:37] Onnauwkeurig} 22. bxc6 {[%emt 0:00:37] OK} bxc6 {[%emt 0:00:06]} 23. Nd1 {[%emt 0:01:04] OK} Rfb8 {[%emt 0:10:19] Onnauwkeurig} 24. Nb2 {[%emt 0:01:07] OK} Rb6 {[%emt 0:01:43] Fout (0.8)} (24... Qb7 $14) 25. Nd3 $16 {[%emt 0:00:40] OK} Rab8 {[%emt 0:00:13][%cal Rb6b1]} 26. Qd1 {[%emt 0:04:32] Wit is actiever.} Qa7 {[%emt 0:03:37] Fout (0.5)} (26... Rxb1 27. Rxb1 Rxb1 28. Qxb1 Qb7) {Wit zou kunnen kiezen . Beter is} 27. Nc5 {[%emt 0:01:48] Fout (0.5)} (27. Rxb6 Qxb6 28. Ne5) {Zwart zou moeten proberen} 27... Rb4 {[%emt 0:01:38] Onnauwkeurig} 28. Nd3 {[%emt 0:05:40]} R4b6 {[%emt 0:01:26]} 29. Nc5 {[%emt 0:00:05] Onnauwkeurig} Rb4 {[%emt 0:02:47] Fout (0.5)} (29... Rxb1 30. Rxb1 Ng6) 30. Nd3 {[%emt 0:00:03]} R4b6 {[%emt 0:00:07] OK} 31. Nc5 {[%emt 0:01:11] Blunder waarde: Wit=0.24 (precies) /Zwart=0.29 (precies) . Fout (1.2).  Fout:        	Wit=2      	Zwart=6      Onnauwkeurig:    	Wit=3      	Zwart=4      OK:         	Wit=6      	Zwart=6      Beste:        	Wit=1      	Zwart=1} (31. h4 $16) 1/2-1/2

[Event "BL 2024-25"]
[Site "Austria"]
[Date "2024.10.13"]
[Round "5.5"]
[White "Platzgummer, Fabian"]
[Black "Krebs, Johann"]
[Result "1/2-1/2"]
[Annotator "RC"]
[ECO "A49"]
[WhiteElo "2301"]
[BlackElo "2217"]
[PlyCount "70"]
[EventDate "2024.08.28"]
[EventType "team-tourn"]
[EventCountry "AUT"]
[SourceTitle "playchess.com"]
[Source "ChessBase"]
[SourceQuality "1"]
[WhiteTeam "Mayrhofen-Zell-Ziller"]
[BlackTeam "Frauental"]
[TimeControl "40/5400+30:1800+30"]

1. Nf3 {[%emt 0:00:06]} Nf6 {[%emt 0:00:26]} 2. g3 {[%emt 0:00:21]} g6 {[%emt 0:00:27]} 3. b3 {[%emt 0:00:15]} Bg7 {[%emt 0:00:19]} 4. Bb2 {[%emt 0:00:08]} O-O {[%emt 0:00:30]} 5. Bg2 {[%emt 0:00:06]} d6 {[%emt 0:00:28]} 6. d4 {[%emt 0:01:36]} e5 {[%emt 0:06:57]} 7. dxe5 {[%emt 0:00:42]} Nfd7 {[%emt 0:01:36]} 8. O-O {[%emt 0:06:08]} dxe5 {[%emt 0:05:33]} 9. e4 {[%emt 0:06:07]} Nc6 {[%emt 0:05:03]} 10. Qd2 {[%emt 0:21:06]} Nc5 {[%emt 0:16:29]} 11. Nc3 {[%emt 0:19:24]} Bg4 {[%emt 0:07:19]} 12. Ba3 {[%emt 0:03:19]} Bxf3 {[%emt 0:05:33]} 13. Qxd8 {[%emt 0:00:18]} Rfxd8 {[%emt 0:00:08]} 14. Bxf3 {[%emt 0:11:31]} Ne6 {[%emt 0:03:22]} 15. Nd5 {[%emt 0:01:18]} Ncd4 {[%emt 0:03:49]} 16. Bd1 {[%emt 0:01:03]} c6 {[%emt 0:01:31]} 17. Ne3 {[%emt 0:01:15]} Bf8 {[%emt 0:03:14]} 18. Bb2 {[%emt 0:01:40]} f6 {[%emt 0:00:53]} 19. c3 {[%emt 0:07:16]} Nb5 {[%emt 0:00:40]} 20. b4 {[%emt 0:03:14]} Ng5 {[%emt 0:06:20]} 21. f3 {[%emt 0:03:05]} a5 {[%emt 0:07:39]} 22. h4 {[%emt 0:00:39]} Nf7 {[%emt 0:05:34]} 23. a4 {[%emt 0:03:48]} Nxc3 {[%emt 0:05:08]} 24. Bxc3 {[%emt 0:05:47]} Rd3 {[%emt 0:01:55]} 25. Be1 {[%emt 0:00:07]} Rxe3 {[%emt 0:00:41]} 26. bxa5 {[%emt 0:00:13]} Bc5 {[%emt 0:01:49]} 27. Kg2 {[%emt 0:00:06]} Rd8 {[%emt 0:01:03]} 28. Rc1 {[%emt 0:00:54]} Ba3 {[%emt 0:03:21]} 29. Ra1 {[%emt 0:00:45]} Kg7 {[%emt 0:01:51]} 30. Rb1 {[%emt 0:00:14]} Rd7 {[%emt 0:02:03]} 31. Kf2 {[%emt 0:01:15]} Bc5 {[%emt 0:01:07]} 32. Kg2 {[%emt 0:00:02]} Nd8 {[%emt 0:00:17]} 33. Kh3 {[%emt 0:01:00]} Ra3 {[%emt 0:00:57]} 34. Bb3 {[%emt 0:00:54]} Rd3 {[%emt 0:00:24]} 35. Bd1 {[%emt 0:00:06]} Rd7 {[%emt 0:02:30]} 1/2-1/2

[Event "BL 2024-25"]
[Site "Austria"]
[Date "2024.10.13"]
[Round "5.5"]
[White "Platzgummer, Fabian"]
[Black "Krebs, Johann"]
[Result "*"]
[Annotator "RC"]
[ECO "A49"]
[WhiteElo "2301"]
[BlackElo "2217"]
[PlyCount "29"]
[EventDate "2024.08.28"]
[EventType "team-tourn"]
[EventCountry "AUT"]
[SourceTitle "playchess.com"]
[Source "ChessBase"]
[SourceQuality "1"]
[WhiteTeam "Mayrhofen-Zell-Ziller"]
[BlackTeam "Frauental"]
[TimeControl "40/5400+30:1800+30"]

1. Nf3 {[%emt 0:00:06]} Nf6 {[%emt 0:00:26]} 2. g3 {[%emt 0:00:21]} g6 {[%emt 0:00:27]} 3. b3 {[%emt 0:00:15]} Bg7 {[%emt 0:00:19]} 4. Bb2 {[%emt 0:00:08]} O-O {[%emt 0:00:30]} 5. Bg2 {[%emt 0:00:06]} d6 {[%emt 0:00:28]} 6. d4 {[%emt 0:01:36]} e5 {[%emt 0:06:57]} 7. dxe5 {[%emt 0:00:42]} Nfd7 {[%emt 0:01:36]} 8. O-O {[%emt 0:06:08]} dxe5 {[%emt 0:05:33]} 9. e4 {[%emt 0:06:07]} Nc6 {[%emt 0:05:03]} 10. Qd2 {[%emt 0:21:06]} Nc5 {[%emt 0:16:29]} 11. Nc3 {[%emt 0:19:24]} Bg4 {[%emt 0:07:19]} 12. Ba3 {[%emt 0:03:19]} Bxf3 {[%emt 0:05:33]} 13. Qxd8 {[%emt 0:00:18]} Re8 {[%emt 0:46:20]} 14. Qxa8 Rxa8 {[%emt 0:00:00]} 15. Bxf3 {[%emt 0:12:01]} *

[Event "BL 2024-25"]
[Site "Austria"]
[Date "2024.10.13"]
[Round "5.6"]
[White "Gruenwald, Simon"]
[Black "Tabernig, Bernhard"]
[Result "1/2-1/2"]
[Annotator "RC"]
[ECO "B19"]
[WhiteElo "2143"]
[BlackElo "2256"]
[PlyCount "86"]
[EventDate "2024.08.28"]
[EventType "team-tourn"]
[EventCountry "AUT"]
[SourceTitle "playchess.com"]
[Source "ChessBase"]
[SourceQuality "1"]
[WhiteTeam "Frauental"]
[BlackTeam "Mayrhofen-Zell-Ziller"]
[TimeControl "40/5400+30:1800+30"]

1. e4 {[%emt 0:00:03]} c6 {[%emt 0:00:05]} 2. d4 {[%emt 0:00:02]} d5 {[%emt 0:00:07]} 3. Nc3 {[%emt 0:00:01]} dxe4 {[%emt 0:00:26]} 4. Nxe4 {[%emt 0:00:02]} Bf5 {[%emt 0:00:09]} 5. Ng3 {[%emt 0:00:01]} Bg6 {[%emt 0:00:08]} 6. h4 {[%emt 0:00:01]} h6 {[%emt 0:00:21]} 7. Nf3 {[%emt 0:00:01]} Nd7 {[%emt 0:00:26]} 8. h5 {[%emt 0:00:02]} Bh7 {[%emt 1:32:48]} 9. Bd3 {[%emt 0:00:01]} Bxd3 {[%emt 0:00:35]} 10. Qxd3 {[%emt 0:00:02]} Ngf6 {[%emt 0:00:20]} 11. Bd2 {[%emt 0:00:01]} e6 {[%emt 0:00:17]} 12. O-O-O {[%emt 0:00:02]} Be7 {[%emt 0:00:30]} 13. Ne4 {[%emt 0:00:01]} Nxe4 {[%emt 0:01:17]} 14. Qxe4 {[%emt 0:00:02]} Nf6 {[%emt 0:00:12]} 15. Qe2 {[%emt 0:00:01]} Qd5 {[%emt 0:01:32]} 16. c4 {[%emt 0:00:01]} Qe4 {[%emt 0:00:38]} 17. Qxe4 {[%emt 1:38:36]} Nxe4 {[%emt 0:00:10]} 18. Be3 {[%emt 0:00:01]} O-O {[%emt 1:32:07]} 19. Ne5 {[%emt 0:00:01]} Rfd8 {[%emt 0:02:49]} 20. g4 {[%emt 0:00:02]} Rac8 {[%emt 0:07:41]} 21. f3 {[%emt 0:06:37]} Bg5 {[%emt 0:08:39]} 22. f4 {[%emt 0:10:22]} Bf6 {[%emt 0:00:53]} 23. Kc2 {[%emt 0:14:21]} b5 {[%emt 0:08:55]} 24. b3 {[%emt 0:05:28]} Be7 {[%emt 0:08:09]} 25. Rd3 {[%emt 0:11:06]} f6 {[%emt 0:04:39]} 26. Nf3 {[%emt 0:06:38]} Rd7 {[%emt 0:05:10]} 27. Rhd1 {[%emt 0:09:57]} Rb7 {[%emt 0:02:35]} 28. Nd2 {[%emt 0:13:26]} Nd6 {[%emt 0:02:57]} 29. Rc3 {[%emt 0:02:29]} a6 {[%emt 0:05:27]} 30. Kd3 {[%emt 0:03:11]} bxc4+ {[%emt 0:06:52]} 31. bxc4 {[%emt 0:01:18]} f5 {[%emt 0:02:11]} 32. g5 {[%emt 0:02:22]} hxg5 {[%emt 0:00:23]} 33. fxg5 {[%emt 0:00:01]} Rb2 {[%emt 0:00:25]} 34. Rc2 {[%emt 0:00:51]} Rxc2 {[%emt 0:03:43]} 35. Kxc2 {[%emt 0:00:04]} Nf7 {[%emt 0:14:21]} 36. Nf3 {[%emt 0:01:10]} Nd6 {[%emt 0:00:24]} 37. Nd2 {[%emt 0:01:04]} Nf7 {[%emt 0:00:16]} 38. Nf3 {[%emt 0:03:21]} Nd6 {[%emt 0:00:25]} 39. Ne5 {[%emt 0:08:13]} Ne4 {[%emt 0:01:05]} 40. Ng6 {[%emt 0:01:31]} Kf7 {[%emt 0:02:19]} 41. Ne5+ {[%emt 0:35:02]} Kg8 {[%emt 0:30:26]} 42. Ng6 {[%emt 0:00:28]} Kf7 {[%emt 0:00:14]} 43. Nxe7 {[%emt 0:00:00]} Kxe7 {[%emt 0:00:00]} 1/2-1/2